bitfinex/quotes_BTCUSD_20250730
["timestamp","ask_amount","ask_price","bid_price","bid_amount"]
[1753901936931,4.61534301,116790.0,116780.0,0.00769031]
[1753901937152,4.28285617,116790.0,116780.0,0.00769031]
[1753901937362,4.52942808,116790.0,116780.0,0.00769031]
[1753901937779,4.60534337,116790.0,116780.0,0.00769031]
[1753901938011,4.81734337,116790.0,116780.0,0.00769031]
[1753901938231,4.65187643,116790.0,116780.0,0.00769031]
[1753901938450,5.01734337,116790.0,116780.0,0.00769031]
[1753901938881,5.06878337,116790.0,116780.0,0.00769031]
[1753901939091,5.15326067,116790.0,116780.0,0.00769031]
[1753901939350,5.17854708,116790.0,116780.0,0.00769031]
[1753901940542,5.12034708,116790.0,116780.0,0.00769031]
[1753901941016,5.17838708,116790.0,116780.0,0.00769031]
[1753901941233,5.09390978,116790.0,116780.0,0.00769031]
[1753901941446,4.72844284,116790.0,116780.0,0.00769031]
[1753901941657,5.09390978,116790.0,116780.0,0.00769031]
[1753901942726,4.67040284,116790.0,116780.0,0.00769031]
[1753901942969,5.17834708,116790.0,116780.0,0.00769031]
[1753901943187,1.60952008,116790.0,116780.0,0.00769031]
[1753901943390,5.17834708,116790.0,116780.0,0.00769031]
[1753901948081,5.23464701,116790.0,116780.0,0.00769031]
[1753901948538,5.23452701,116790.0,116780.0,0.00769031]
[1753901948984,0.67001096,116770.0,116760.0,0.06980527]
[1753901949204,5.12883796,116770.0,116760.0,0.06980527]
[1753901949418,5.18779796,116770.0,116760.0,0.06980527]
[1753901950333,4.82237102,116770.0,116760.0,0.06980527]
[1753901950576,5.18883796,116770.0,116760.0,0.07080527]
[1753901950984,5.28580987,116770.0,116760.0,0.07080527]
[1753901951261,5.31184052,116770.0,116760.0,0.07080527]
[1753901951496,5.26040052,116770.0,116760.0,0.07080527]
[1753901952011,5.26240052,116770.0,116760.0,0.07180527]
[1753901952755,4.36073897,116770.0,116760.0,0.07180527]
[1753901953007,4.98536591,116770.0,116760.0,0.07180527]
[1753901953252,4.78536591,116770.0,116760.0,0.07180527]
[1753901953940,3.98045131,116770.0,116760.0,0.07180527]
[1753901954237,4.21084898,116770.0,116760.0,0.07180527]
[1753901954875,4.55084898,116770.0,116760.0,0.07180527]
[1753901955091,4.1262616,116770.0,116760.0,0.07180527]
[1753901955309,0.42781013,116770.0,116760.0,0.07180527]
[1753901955530,0.42781005,116770.0,116760.0,0.07180527]
[1753901955748,0.71703019,116770.0,116760.0,0.10370527]
[1753901955977,0.003,116770.0,116760.0,0.13660527]
[1753901956197,0.0622,116770.0,116760.0,0.23521787]
[1753901956844,0.0612,116770.0,116760.0,0.22008257]
[1753901957301,0.0602,116770.0,116760.0,0.22008257]
[1753901957511,0.001,116770.0,116760.0,0.22308257]
[1753901957718,0.003,116770.0,116760.0,0.22308257]
[1753901957938,0.06016,116770.0,116760.0,0.22008257]
[1753901958155,0.06216,116770.0,116760.0,0.22308257]
[1753901958381,0.06116,116770.0,116760.0,0.22208257]
[1753901959229,0.10467895,116770.0,116760.0,0.22208257]
[1753901959464,0.42662694,116770.0,116760.0,0.07280527]
[1753901959708,4.23070828,116770.0,116760.0,0.07580527]
[1753901959932,4.72485826,116770.0,116760.0,0.07580527]
[1753901961042,4.35639132,116770.0,116760.0,0.06980527]
[1753901961218,4.73042159,116770.0,116760.0,0.06980527]
[1753901961459,4.73142159,116770.0,116760.0,0.07280527]
[1753901961892,4.72385819,116770.0,116760.0,0.07380527]
[1753901962325,4.80833549,116770.0,116760.0,0.07380527]
[1753901962532,4.79977187,116770.0,116760.0,0.07380527]
[1753901962739,5.17659433,116770.0,116760.0,0.07380527]
[1753901962959,5.32659433,116770.0,116760.0,0.07380527]
[1753901963174,5.29844917,116770.0,116760.0,0.07380527]
[1753901964438,5.29644917,116770.0,116760.0,0.06980527]
[1753901964689,5.32420617,116770.0,116760.0,0.07280527]
[1753901965631,4.87426193,116770.0,116760.0,0.07280527]
[1753901965817,5.23972887,116770.0,116760.0,0.07280527]
[1753901966043,5.03972887,116770.0,116760.0,0.07280527]
[1753901966257,5.01397187,116770.0,116760.0,0.07280527]
[1753901966468,1.44514487,116770.0,116760.0,0.07280527]
[1753901966681,5.09844917,116770.0,116760.0,0.07280527]
[1753901967703,5.03928917,116770.0,116760.0,0.07280527]
[1753901967940,4.95813542,116770.0,116760.0,0.07280527]
[1753901969111,5.02373542,116770.0,116760.0,0.07280527]
[1753901969854,5.05188058,116770.0,116760.0,0.07280527]
[1753901971758,5.10344033,116770.0,116760.0,0.07280527]
[1753901971970,5.15977247,116770.0,116760.0,0.07080527]
[1753901972193,5.29981247,116770.0,116760.0,0.07080527]
[1753901972450,5.4149124,116770.0,116760.0,0.07080527]
[1753901972683,4.86119417,116770.0,116760.0,0.07080527]
[1753901972916,5.05816152,116770.0,116760.0,0.07080527]
[1753901973153,5.06477162,116770.0,116760.0,0.07080527]
[1753901973399,0.63459596,116760.0,116750.0,0.50250636]
[1753901973636,5.13425357,116760.0,116750.0,0.50250636]
[1753901973869,4.7209313,116760.0,116750.0,0.50250636]
[1753901974106,4.93433771,116760.0,116750.0,0.50250636]
[1753901974587,5.2999244,116760.0,116750.0,0.50250636]
[1753901974817,5.34057378,116760.0,116750.0,0.50250636]
[1753901975080,5.34157378,116760.0,116750.0,0.50350636]
[1753901975306,5.36971894,116760.0,116750.0,0.50350636]
[1753901975535,5.58716796,116760.0,116750.0,0.50350636]
[1753901975771,5.14525225,116760.0,116750.0,0.50350636]
[1753901976000,4.94775232,116760.0,116750.0,0.50350636]
[1753901976234,5.31433901,116760.0,116750.0,0.50350636]
[1753901976964,4.62147771,116760.0,116750.0,0.50350636]
[1753901977182,4.68727771,116760.0,116750.0,0.50350636]
[1753901977413,4.62851771,116760.0,116750.0,0.50350636]
[1753901977645,4.28871102,116760.0,116750.0,0.50350636]
[1753901977865,4.6165558,116760.0,116750.0,0.50350636]
[1753901978094,4.5578758,116760.0,116750.0,0.50350636]
[1753901978351,4.36078697,116760.0,116750.0,0.50350636]
[1753901978582,4.4733985,116760.0,116750.0,0.50350636]
[1753901978815,4.5320785,116760.0,116750.0,0.50350636]
[1753901979065,0.7748309,116760.0,116750.0,0.50350636]
[1753901979306,3.570827,116760.0,116750.0,0.56520636]
[1753901979568,4.09665977,116760.0,116750.0,0.50350636]
[1753901979818,4.10522397,116760.0,116750.0,0.50350636]
[1753901980114,4.44522331,116760.0,116750.0,0.50350636]
[1753901980354,4.60595123,116760.0,116750.0,0.50250636]
[1753901980574,4.68386425,116760.0,116750.0,0.50250636]
[1753901980998,4.68486425,116760.0,116750.0,0.50250636]
[1753901981196,4.68286425,116760.0,116750.0,0.50250636]
[1753901981525,4.68486425,116760.0,116750.0,0.50250636]
[1753901981983,4.68286425,116760.0,116750.0,0.50250636]
[1753901982225,4.94766425,116760.0,116750.0,0.50250636]
[1753901982443,5.02725902,116760.0,116750.0,0.50250636]
[1753901982656,5.02825902,116760.0,116750.0,0.50350636]
[1753901983118,5.02725902,116760.0,116750.0,0.50250636]
[1753901983312,5.05302002,116760.0,116750.0,0.50250636]
[1753901983545,5.05402002,116760.0,116750.0,0.50350636]
[1753901983769,4.99326525,116760.0,116750.0,0.50350636]
[1753901984008,4.96450425,116760.0,116750.0,0.50250636]
[1753901984254,4.59718695,116760.0,116750.0,0.50250636]
[1753901984478,4.60018695,116760.0,116750.0,0.50350636]
[1753901984949,3.58895564,116760.0,116750.0,0.50350636]
[1753901985183,3.59751939,116760.0,116750.0,0.53600636]
[1753901985410,3.64735504,116760.0,116750.0,0.56680636]
[1753901985652,0.004,116760.0,116750.0,0.56680636]
[1753901985893,0.09677705,116760.0,116750.0,0.53600636]
[1753901986144,0.09677705,116760.0,116750.0,0.50350636]
[1753901986145,4.12683429,116760.0,116750.0,0.50350636]
[1753901986381,4.52535429,116760.0,116750.0,0.50350636]
[1753901986614,4.52435429,116760.0,116750.0,0.50350636]
[1753901987078,4.52235429,116760.0,116750.0,0.50250636]
[1753901987314,4.60883159,116760.0,116750.0,0.50450636]
[1753901987538,4.60026709,116760.0,116750.0,0.50450636]
[1753901987774,4.59826709,116760.0,116750.0,0.50250636]
[1753901988024,4.79926709,116760.0,116750.0,0.50450636]
[1753901988975,4.79826709,116760.0,116750.0,0.50450636]
[1753901989214,4.71378979,116760.0,116750.0,0.50450636]
[1753901989451,4.71478979,116760.0,116750.0,0.50450636]
[1753901990854,4.79926709,116760.0,116750.0,0.50450636]
[1753901991068,5.25400855,116760.0,116750.0,0.50450636]
[1753901991574,4.86026709,116760.0,116750.0,0.50450636]
[1753901991845,4.94474439,116760.0,116750.0,0.50450636]
[1753901992086,4.88350439,116760.0,116750.0,0.50450636]
[1753901992333,4.88250439,116760.0,116750.0,0.50450636]
[1753901992896,1.31467739,116760.0,116750.0,0.50450636]
[1753901993103,5.36253108,116760.0,116750.0,0.50450636]
[1753901993593,4.99694439,116760.0,116750.0,0.50450636]
[1753901993843,4.99594439,116760.0,116750.0,0.50250636]
[1753901994076,4.79894709,116760.0,116750.0,0.50350636]
[1753901995983,4.4333604,116760.0,116750.0,0.50350636]
[1753901996204,4.79894709,116760.0,116750.0,0.50350636]
[1753901996643,4.85038709,116760.0,116750.0,0.50350636]
[1753901996870,4.91348709,116760.0,116750.0,0.50350636]
[1753901997074,4.99796439,116760.0,116750.0,0.50350636]
[1753901997293,5.36355108,116760.0,116750.0,0.50350636]
[1753901997726,5.36304312,116760.0,116750.0,0.50350636]
[1753901997975,4.79163298,116760.0,116750.0,0.50350636]
[1753901998225,4.48408629,116760.0,116750.0,0.50350636]
[1753901998436,4.84967298,116760.0,116750.0,0.50350636]
[1753901998871,1.28084598,116760.0,116750.0,0.50350636]
[1753901999073,4.93415028,116760.0,116750.0,0.50350636]
[1753901999278,4.93411028,116760.0,116750.0,0.50350636]
[1753902000397,5.02646505,116760.0,116750.0,0.50350636]
[1753902000615,5.02646505,116760.0,116750.0,0.11127938]
[1753902000616,5.4201969,116760.0,116750.0,0.11127938]
[1753902000831,4.58249313,116750.0,116740.0,0.04038939]
[1753902001045,1.87161664,116750.0,116740.0,0.04038939]
[1753902001262,5.44044364,116750.0,116740.0,0.04038939]
[1753902001482,4.25119296,116750.0,116740.0,0.04038939]
[1753902001692,4.75921695,116750.0,116740.0,0.04038939]
[1753902001915,5.40784364,116750.0,116740.0,0.04038939]
[1753902002132,5.46958498,116750.0,116740.0,0.04038939]
[1753902002367,5.50073014,116750.0,116740.0,0.04138939]
[1753902002571,4.58470223,116750.0,116740.0,0.04138939]
[1753902002781,5.34757561,116750.0,116740.0,0.04138939]
[1753902003014,5.37427561,116750.0,116740.0,0.04138939]
[1753902003212,5.46247038,116750.0,116740.0,0.04138939]
[1753902003469,5.54694768,116750.0,116740.0,0.04138939]
[1753902003680,5.4423807,116750.0,116740.0,0.04138939]
[1753902003892,5.47053547,116750.0,116740.0,0.03760939]
[1753902004142,5.48394225,116750.0,116740.0,0.03760939]
[1753902004579,4.56281401,116750.0,116740.0,0.03760939]
[1753902004788,4.76743131,116750.0,116740.0,0.03760939]
[1753902004997,5.473018,116750.0,116740.0,0.03760939]
[1753902005416,5.414978,116750.0,116740.0,0.03760939]
[1753902005656,5.472978,116750.0,116740.0,0.03760939]
[1753902005869,5.524418,116750.0,116740.0,0.03382939]
[1753902006281,5.53782513,116750.0,116740.0,0.03382939]
[1753902006502,5.53782513,116750.0,116740.0,0.03003939]
[1753902006910,5.56359013,116750.0,116740.0,0.03003939]
[1753902007114,0.89,116720.0,116710.0,9.545e-05]
[1753902007348,5.7770538,116720.0,116710.0,9.545e-05]
[1753902007562,5.8019498,116720.0,116710.0,9.545e-05]
[1753902007774,4.98244544,116710.0,116700.0,1e-08]
[1753902007997,0.00856956,116690.0,116680.0,1e-08]
[1753902008212,0.00856956,116690.0,116650.0,0.00041832]
[1753902008213,0.00857324,116640.0,116590.0,0.025]
[1753902008434,4.51758621,116640.0,116600.0,0.55446818]
[1753902008649,4.64293271,116640.0,116600.0,0.55446818]
[1753902008866,4.71883707,116640.0,116600.0,0.55446818]
[1753902009081,4.50100548,116640.0,116610.0,0.00268037]
[1753902009296,4.48683543,116640.0,116610.0,0.00268037]
[1753902009513,0.90943571,116640.0,116610.0,0.00268037]
[1753902009723,4.47770739,116640.0,116610.0,0.00053648]
[1753902009939,4.51206411,116640.0,116610.0,0.00053648]
[1753902010148,4.45451971,116640.0,116610.0,0.00053648]
[1753902010369,0.03750872,116640.0,116610.0,0.42638706]
[1753902010601,0.03750872,116640.0,116630.0,0.06271795]
[1753902010816,0.35,116700.0,116640.0,0.0437]
[1753902011044,3.568827,116680.0,116650.0,0.00214316]
[1753902011255,4.068827,116660.0,116650.0,0.08662046]
[1753902011482,3.568827,116660.0,116650.0,0.08662046]
[1753902011944,0.03455929,116680.0,116670.0,0.01744902]
[1753902012164,0.03455929,116680.0,116670.0,0.16646911]
[1753902012377,0.05844,116690.0,116680.0,0.08124902]
[1753902012602,0.025773,116700.0,116680.0,0.16786893]
[1753902012826,0.05844,116690.0,116680.0,0.07569163]
[1753902013041,0.025773,116700.0,116690.0,0.01744902]
[1753902013042,0.06054521,116700.0,116690.0,0.01744902]
[1753902013319,3.6963406,116700.0,116690.0,0.01744902]
[1753902013558,4.24736035,116690.0,116680.0,0.0001463]
[1753902013781,4.64564704,116690.0,116680.0,0.0001463]
[1753902013996,4.76012434,116690.0,116680.0,0.0001463]
[1753902014448,4.78642155,116690.0,116680.0,0.0001463]
[1753902014666,4.47939486,116690.0,116680.0,0.0001463]
[1753902014904,4.89642155,116690.0,116680.0,0.0001463]
[1753902015127,3.95744116,116640.0,116630.0,0.00031795]
[1753902015343,4.38154785,116640.0,116630.0,0.00046368]
[1753902015795,4.72154785,116640.0,116630.0,0.00046368]
[1753902016664,4.71297476,116640.0,116630.0,0.00046368]
[1753902017108,4.66513922,116640.0,116630.0,0.00046368]
[1753902017322,1.09631222,116640.0,116630.0,0.00046368]
[1753902017539,4.66513922,116640.0,116630.0,0.00046368]
[1753902017979,4.69673922,116640.0,116630.0,0.00146368]
[1753902018239,4.69873922,116640.0,116630.0,0.00246368]
[1753902018681,4.98321652,116640.0,116630.0,0.00246368]
[1753902019204,4.98328501,116640.0,116630.0,0.00246368]
[1753902019436,3.571827,116640.0,116630.0,0.00246368]
[1753902019706,4.14816664,116640.0,116630.0,0.00246368]
[1753902020152,4.48816664,116640.0,116630.0,0.00246368]
[1753902020377,4.49673944,116640.0,116630.0,0.00246368]
[1753902020593,4.70249955,116640.0,116630.0,0.00246368]
[1753902020821,4.68535388,116640.0,116630.0,0.00246368]
[1753902021050,4.5053123,116640.0,116630.0,0.00246368]
[1753902021272,4.81550923,116640.0,116630.0,0.00246368]
[1753902021510,5.22445824,116640.0,116630.0,0.00246368]
[1753902021933,5.06156342,116640.0,116630.0,0.00246368]
[1753902022120,5.22445824,116640.0,116630.0,0.00246368]
[1753902022296,5.22449824,116640.0,116630.0,0.00246368]
[1753902022755,4.69810544,116640.0,116630.0,0.00246368]
[1753902023105,4.63490544,116640.0,116630.0,0.00246368]
[1753902023285,4.28329476,116640.0,116630.0,0.00246368]
[1753902023518,0.003,116640.0,116630.0,0.00246368]
[1753902023727,0.003,116640.0,116630.0,0.65560215]
[1753902023934,0.003,116640.0,116630.0,0.11834098]
[1753902024149,0.06156,116640.0,116630.0,0.03386368]
[1753902024359,0.08723927,116640.0,116630.0,0.00246368]
[1753902024574,0.06152,116640.0,116630.0,0.00246368]
[1753902025012,0.05852,116640.0,116630.0,0.03116368]
[1753902025224,0.34857213,116650.0,116630.0,0.06236368]
[1753902025437,0.06152,116640.0,116630.0,0.11764098]
[1753902025651,0.003,116640.0,116630.0,0.14834098]
[1753902025870,0.06148,116640.0,116630.0,0.14834098]
[1753902026328,0.02871882,116640.0,116630.0,0.00246368]
[1753902026538,0.07005272,116640.0,116630.0,0.00246368]
[1753902026751,3.970307,116640.0,116630.0,0.00246368]
[1753902026970,3.9788798,116640.0,116630.0,0.00246368]
[1753902027194,4.15892109,116640.0,116630.0,0.00246368]
[1753902027449,4.30044109,116640.0,116630.0,0.00246368]
[1753902027676,5.16488701,116640.0,116630.0,0.00246368]
[1753902027898,5.22336701,116640.0,116630.0,0.00246368]
[1753902028532,5.2445375,116640.0,116630.0,0.00246368]
[1753902028761,5.2415375,116640.0,116630.0,0.00046368]
[1753902029274,5.2415375,116640.0,116630.0,0.00146368]
[1753902029275,5.2435375,116640.0,116630.0,0.00146368]
[1753902029531,5.25595717,116640.0,116630.0,0.00046368]
[1753902029740,5.2425375,116640.0,116630.0,0.00046368]
[1753902029969,5.2455375,116640.0,116630.0,0.00146368]
[1753902031114,5.76320612,116640.0,116630.0,1e-08]
[1753902031346,5.2455375,116640.0,116630.0,1e-08]
[1753902032301,4.72786888,116640.0,116630.0,1e-08]
[1753902032522,5.2455375,116640.0,116630.0,1e-08]
[1753902032774,5.2456175,116640.0,116630.0,1e-08]
[1753902032999,4.42588701,116640.0,116630.0,1e-08]
[1753902033218,4.45154701,116640.0,116630.0,1e-08]
[1753902033463,4.42114701,116640.0,116630.0,1e-08]
[1753902033682,4.42214701,116640.0,116630.0,0.00100001]
[1753902033863,4.79224701,116640.0,116630.0,0.00100001]
[1753902034745,4.27457839,116640.0,116630.0,0.00100001]
[1753902034956,4.79224701,116640.0,116630.0,0.00100001]
[1753902036212,1.22342001,116640.0,116630.0,0.00100001]
[1753902036449,4.62935219,116640.0,116630.0,0.00100001]
[1753902036637,4.80081995,116640.0,116630.0,0.00100001]
[1753902036778,4.80101783,116640.0,116630.0,0.00100001]
[1753902036988,4.5737308,116640.0,116630.0,0.00100001]
[1753902037194,4.5823036,116640.0,116630.0,0.00100001]
[1753902037436,4.77949063,116640.0,116630.0,0.00100001]
[1753902037643,3.572827,116640.0,116630.0,0.00100001]
[1753902037865,0.004,116640.0,116630.0,0.00100001]
[1753902038074,3.971467,116640.0,116630.0,0.00100001]
[1753902038220,0.40264,116640.0,116630.0,0.00100001]
[1753902038434,4.50647931,116640.0,116630.0,0.00100001]
[1753902038848,0.06264,116640.0,116630.0,0.00100001]
[1753902039063,0.06264,116640.0,116630.0,0.11557731]
[1753902039248,0.004,116640.0,116630.0,0.11772084]
[1753902039485,0.0626,116640.0,116630.0,0.11772084]
[1753902039708,0.003,116640.0,116630.0,0.11672084]
[1753902039920,0.06156,116640.0,116630.0,0.11672084]
[1753902040158,0.40256,116640.0,116630.0,0.08647731]
[1753902040385,0.35257287,116640.0,116630.0,0.00200001]
[1753902040604,0.40252,116640.0,116630.0,0.00200001]
[1753902040824,0.004,116640.0,116630.0,0.16492633]
[1753902041041,0.06252,116640.0,116630.0,0.16492633]
[1753902041496,0.57995739,116640.0,116630.0,0.00200001]
[1753902041747,0.76857096,116640.0,116630.0,0.00200001]
[1753902041951,4.67739825,116640.0,116630.0,0.00200001]
[1753902042161,4.51450321,116640.0,116630.0,0.00200001]
[1753902042376,4.17710689,116640.0,116630.0,0.00200001]
[1753902042602,4.15696123,116640.0,116630.0,0.002]
[1753902042864,4.67439862,116640.0,116630.0,0.002]
[1753902043081,5.37317592,116640.0,116630.0,0.002]
[1753902043957,1.80434892,116640.0,116630.0,0.002]
[1753902044141,5.36317592,116640.0,116630.0,0.002]
[1753902045816,5.37719987,116640.0,116630.0,0.002]
[1753902046636,4.85915777,116640.0,116630.0,0.002]
[1753902046814,1.07864637,116620.0,116610.0,0.00053648]
[1753902047015,5.28617547,116620.0,116610.0,0.00053648]
[1753902047235,4.64747337,116620.0,116610.0,0.00053648]
[1753902047450,5.07427583,116620.0,116610.0,0.00053648]
[1753902047655,4.70623373,116620.0,116610.0,0.00053648]
[1753902047783,5.22427583,116620.0,116610.0,0.00053648]
[1753902048194,5.19731583,116620.0,116610.0,0.00253648]
[1753902048399,5.23141583,116620.0,116610.0,0.00253648]
[1753902048600,5.37477313,116620.0,116610.0,0.00253648]
[1753902049066,1.80594613,116620.0,116610.0,0.00253648]
[1753902049296,4.85873103,116620.0,116610.0,0.00353648]
[1753902049499,5.17677313,116620.0,116610.0,0.00353648]
[1753902050314,4.42563103,116620.0,116610.0,0.00353648]
[1753902050585,4.39383103,116620.0,116610.0,0.00353648]
[1753902050794,4.42393103,116620.0,116610.0,0.00353648]
[1753902050998,4.39383103,116620.0,116610.0,0.00353648]
[1753902051206,4.13813576,116620.0,116610.0,0.00353648]
[1753902051428,4.30105844,116620.0,116610.0,0.00353648]
[1753902051650,4.14671017,116620.0,116610.0,0.00353648]
[1753902051860,3.970987,116620.0,116610.0,0.00353648]
[1753902052071,0.06216,116620.0,116610.0,0.00353648]
[1753902052283,0.06216,116620.0,116610.0,0.00568037]
[1753902052547,3.63956127,116620.0,116610.0,0.00568037]
[1753902052759,0.41073427,116620.0,116610.0,0.00353648]
[1753902053050,0.41065419,116620.0,116610.0,0.00353648]
[1753902053265,0.40208,116620.0,116610.0,0.00353648]
[1753902053486,0.40208,116620.0,116610.0,0.13840669]
[1753902053487,0.06208,116620.0,116610.0,0.13840669]
[1753902053732,0.003,116620.0,116610.0,0.16890669]
[1753902054225,0.503,116620.0,116610.0,0.00349575]
[1753902054473,3.570827,116620.0,116610.0,0.00149575]
[1753902054718,0.34,116620.0,116610.0,0.00263964]
[1753902054932,0.3551486,116620.0,116610.0,0.00323964]
[1753902055164,3.91740119,116620.0,116610.0,0.00109575]
[1753902055411,4.27019652,116620.0,116610.0,9.575e-05]
[1753902055633,4.77966443,116620.0,116610.0,9.575e-05]
[1753902055862,4.82911575,116620.0,116610.0,0.00109575]
[1753902056097,5.03111575,116620.0,116610.0,0.00109575]
[1753902056602,4.56451365,116620.0,116610.0,0.00109575]
[1753902056896,5.31559305,116620.0,116610.0,0.00109575]
[1753902057390,0.17145462,116650.0,116610.0,0.00223964]
[1753902057391,0.2,116650.0,116610.0,0.00223964]
[1753902057625,2.835322,116680.0,116650.0,0.01744902]
[1753902057886,0.08244,116650.0,116630.0,0.025]
[1753902058154,0.06024,116640.0,116630.0,0.04044902]
[1753902058385,0.06024,116640.0,116630.0,0.023]
[1753902058603,0.08244,116650.0,116640.0,0.024]
[1753902058826,0.14464,116650.0,116640.0,0.1084773]
[1753902059031,0.08444,116650.0,116640.0,0.0844773]
[1753902059255,0.14280524,116650.0,116640.0,0.1084773]
[1753902059490,0.14280524,116650.0,116640.0,0.10192632]
[1753902059710,0.14280524,116650.0,116640.0,0.0844773]
[1753902059927,0.14276524,116650.0,116640.0,0.08662064]
[1753902060368,0.14276524,116650.0,116620.0,0.01744902]
[1753902060596,0.14376524,116650.0,116630.0,0.0844773]
[1753902060872,0.21106537,116650.0,116620.0,0.0844773]
[1753902061118,0.21106537,116650.0,116610.0,0.00223964]
[1753902061119,0.0331,116640.0,116610.0,0.00223964]
[1753902061358,0.56216,116640.0,116610.0,0.08671694]
[1753902061573,0.0645,116620.0,116610.0,9.575e-05]
[1753902061783,0.0339,116630.0,116610.0,0.00223964]
[1753902062015,2.835322,116630.0,116610.0,0.08671694]
[1753902062229,0.06016,116620.0,116610.0,0.08671694]
[1753902062660,0.5,116630.0,116610.0,0.08671694]
[1753902062878,0.0349,116640.0,116610.0,0.08671694]
[1753902062879,0.0329,116640.0,116610.0,0.08671694]
[1753902063096,2.835322,116630.0,116620.0,0.0844773]
[1753902063347,0.06012,116630.0,116620.0,0.0844773]
[1753902063801,0.5,116640.0,116620.0,0.0844773]
[1753902064030,0.06008,116630.0,116620.0,0.0844773]
[1753902064459,0.06108,116630.0,116620.0,0.0844773]
[1753902064689,0.002,116630.0,116620.0,0.0864773]
[1753902064869,0.06108,116630.0,116620.0,0.0864773]
[1753902065123,0.001,116630.0,116620.0,0.0864773]
[1753902065332,0.061,116630.0,116620.0,0.002]
[1753902065551,0.062,116630.0,116620.0,0.006]
[1753902066202,0.002,116630.0,116620.0,0.0904773]
[1753902066410,0.06192,116630.0,116620.0,0.0904773]
[1753902067090,0.002,116630.0,116620.0,0.0904773]
[1753902067349,2.897202,116630.0,116620.0,0.0904773]
[1753902067597,2.94494906,116630.0,116620.0,0.02344902]
[1753902067846,2.99499657,116630.0,116620.0,0.02344902]
[1753902068073,2.99499657,116630.0,116600.0,0.55446818]
[1753902068074,3.77681483,116610.0,116600.0,0.55446818]
[1753902068323,4.00916693,116610.0,116600.0,0.55446818]
[1753902068790,4.00924693,116610.0,116600.0,0.55446818]
[1753902069223,3.49120483,116610.0,116600.0,0.55446818]
[1753902069460,3.49120483,116610.0,116600.0,0.54495415]
[1753902069730,3.18689928,116580.0,116570.0,0.00039914]
[1753902069955,3.42695338,116580.0,116570.0,0.00039914]
[1753902070436,3.41837581,116580.0,116570.0,0.00039914]
[1753902070864,3.50081581,116580.0,116570.0,0.00039914]
[1753902071095,1.30882998,116580.0,116570.0,0.00039914]
[1753902071328,6.40751527,116580.0,116570.0,0.00039914]
[1753902072495,6.40851527,116580.0,116570.0,0.00039914]
[1753902072716,5.89047317,116580.0,116570.0,0.00039914]
[1753902072944,6.40851527,116580.0,116570.0,0.00039914]
[1753902073167,5.82390133,116560.0,116550.0,0.0525]
[1753902073390,5.76729863,116560.0,116550.0,0.0525]
[1753902073614,0.91695768,116560.0,116550.0,0.0525]
[1753902073852,5.77387739,116560.0,116550.0,0.0525]
[1753902074084,5.61387041,116560.0,116550.0,0.0525]
[1753902074306,5.51313421,116560.0,116550.0,0.0525]
[1753902074531,5.71358141,116560.0,116550.0,0.0525]
[1753902074780,5.89374546,116560.0,116550.0,0.0525]
[1753902075008,5.70500258,116560.0,116550.0,0.0525]
[1753902075238,6.07658802,116560.0,116550.0,0.0525]
[1753902075463,6.07758802,116560.0,116550.0,0.0535]
[1753902075678,6.59563012,116560.0,116550.0,0.0535]
[1753902075893,6.14208802,116560.0,116550.0,0.0193702]
[1753902076137,0.6239168,116550.0,116530.0,0.04450758]
[1753902076382,5.7684341,116550.0,116530.0,0.04450758]
[1753902076614,5.7073941,116550.0,116530.0,0.04450758]
[1753902076833,5.341,116550.0,116530.0,0.04450758]
[1753902077061,5.37731847,116550.0,116530.0,0.04450758]
[1753902077330,5.60903864,116550.0,116530.0,0.04450758]
[1753902077545,5.59287981,116550.0,116540.0,0.53973971]
[1753902077763,5.68103711,116550.0,116540.0,0.53973971]
[1753902077981,5.74115711,116550.0,116540.0,0.53973971]
[1753902078204,5.74111711,116550.0,116540.0,0.53973971]
[1753902078636,5.74207711,116550.0,116540.0,0.54073971]
[1753902079767,5.68203711,116550.0,116540.0,0.54073971]
[1753902080003,5.74203711,116550.0,116540.0,0.54073971]
[1753902080262,5.94203711,116550.0,116540.0,0.54073971]
[1753902080475,5.94199711,116550.0,116540.0,0.54073971]
[1753902081193,5.88203711,116550.0,116540.0,0.54073971]
[1753902081455,5.94199711,116550.0,116540.0,0.54073971]
[1753902082758,5.88203711,116550.0,116540.0,0.54073971]
[1753902082976,5.94195711,116550.0,116540.0,0.54073971]
[1753902083194,5.88203711,116550.0,116540.0,0.54073971]
[1753902083406,5.94187711,116550.0,116540.0,0.54073971]
[1753902083866,5.96791494,116550.0,116540.0,0.54073971]
[1753902084300,5.70807487,116550.0,116540.0,0.54073971]
[1753902084526,5.76791487,116550.0,116540.0,0.54073971]
[1753902084974,5.76791487,116550.0,116540.0,0.54083971]
[1753902085176,5.6920175,116550.0,116540.0,0.54083971]
[1753902085382,5.46057733,116550.0,116540.0,0.54083971]
[1753902085568,5.13521964,116550.0,116540.0,0.54083971]
[1753902085812,5.49437883,116550.0,116540.0,0.54083971]
[1753902086071,5.95049689,116550.0,116540.0,0.54083971]
[1753902086304,5.94191725,116550.0,116540.0,0.54083971]
[1753902086967,6.308705,116550.0,116540.0,0.54083971]
[1753902087416,5.96759706,116550.0,116540.0,0.54083971]
[1753902087702,5.90771706,116550.0,116540.0,0.54083971]
[1753902088137,5.96759706,116550.0,116540.0,0.54083971]
[1753902088377,5.90771706,116550.0,116540.0,0.54083971]
[1753902088603,5.71159931,116550.0,116540.0,0.54083971]
[1753902088890,5.88319948,116550.0,116540.0,0.54083971]
[1753902089302,5.89177941,116550.0,116540.0,0.54083971]
[1753902089541,5.4068,116550.0,116540.0,0.54083971]
[1753902089762,5.66625951,116550.0,116540.0,0.54083971]
[1753902090410,5.41737956,116550.0,116540.0,0.54083971]
[1753902090628,5.4860789,116550.0,116540.0,0.54083971]
[1753902090853,5.57717847,116550.0,116540.0,0.54083971]
[1753902091078,5.343,116550.0,116540.0,0.54083971]
[1753902091269,5.50475905,116550.0,116540.0,0.54083971]
[1753902091549,5.5365589,116550.0,116540.0,0.54083971]
[1753902091754,5.52597941,116550.0,116540.0,0.54083971]
[1753902091953,5.5194,116550.0,116540.0,0.54083971]
[1753902092255,0.04401681,116550.0,116540.0,1.00955378]
[1753902092663,0.04401681,116550.0,116540.0,1.40394153]
[1753902093172,0.04301681,116550.0,116540.0,1.05915378]
[1753902093397,0.03007703,116550.0,116540.0,1.63087835]
[1753902093593,0.09015703,116550.0,116540.0,1.42494153]
[1753902093816,0.09015703,116550.0,116540.0,1.05815378]
[1753902094019,0.09015703,116550.0,116540.0,1.42494153]
[1753902094219,0.03007703,116550.0,116540.0,1.61371738]
[1753902094432,0.03107703,116550.0,116540.0,1.62429768]
[1753902094638,0.00048726,116560.0,116550.0,0.24462912]
[1753902094639,0.06056726,116560.0,116550.0,0.24462912]
[1753902094843,0.06056726,116560.0,116550.0,0.88250182]
[1753902095054,0.06056726,116560.0,116550.0,0.6667157]
[1753902095269,0.00048726,116560.0,116550.0,0.6667157]